[Event "Satka Autumn 2019"]
[Site "Satka"]
[Date "2019.09.25"]
[Round "7.6"]
[White "Mukhina, Jana"]
[Black "Bykova, Anastasia"]
[Result "0-1"]
[ECO "B18"]
[WhiteElo "2083"]
[BlackElo "2259"]
[Annotator "NA"]
[PlyCount "92"]
[EventDate "2019.09.19"]
[EventType "swiss"]
[EventCountry "RUS"]
[SourceTitle "playchess.com"]
[Source "ChessBase"]
[SourceQuality "1"]
[TimeControl "5400+30"]

1. e4 {[%emt 0:00:00]} c6 {[%emt 0:00:00]} 2. d4 {[%emt 0:00:00]} d5 {[%emt 0:00:00]} 3. Nc3 {[%emt 0:00:00]} dxe4 {[%emt 0:00:00]} 4. Nxe4 {[%emt 0:00:07]} Bf5 {[%emt 0:00:00]} 5. Ng3 {[%emt 0:00:07]} Bg6 {[%emt 0:00:00]} 6. h4 {[%emt 0:00:06]} h6 {[%emt 0:00:00]} 7. Nf3 {[%emt 0:00:07]} e6 {[%emt 0:00:04]} 8. h5 {[%emt 0:07:42]} Bh7 {[%emt 0:00:08]} 9. Bd3 {[%emt 0:00:02]} Bxd3 {[%emt 0:00:07]} 10. Qxd3 {[%emt 0:00:04]} Nf6 {[%emt 0:00:39]} 11. Bd2 {[%emt 0:00:07]} Be7 {[%emt 0:00:15]} 12. O-O-O {[%emt 0:03:07]} O-O {[%emt 0:00:05]} 13. Kb1 {[%emt 0:02:09]} c5 {[%emt 0:00:06]} 14. Be3 {[%emt 0:02:03]} Qc7 {[%emt 0:07:08]} 15. dxc5 {[%emt 0:02:12]} Bxc5 {[%emt 0:00:40]} 16. Bxc5 {[%emt 0:01:12]} Qxc5 {[%emt 0:00:06]} 17. Ne4 {[%emt 0:01:31]} Nxe4 {[%emt 0:00:20]} 18. Qxe4 {[%emt 0:00:02]} Nc6 {[%emt 0:00:20]} 19. g4 {[%emt 0:07:28]} Rfd8 {[%emt 0:04:55]} 20. Rdg1 {[%emt 0:27:42]} Nd4 {[%emt 0:17:20]} 21. Nxd4 {[%emt 0:03:04]} Rxd4 {[%emt 0:01:17]} 22. Qe3 {[%emt 0:01:01]} Qd5 {[%emt 0:01:09]} 23. Qb3 {[%emt 0:06:51]} Rxg4 {[%emt 0:07:37]} 24. Qxd5 {[%emt 0:01:52]} Rxg1+ {[%emt 0:00:04]} 25. Qd1 {[%emt 0:00:42]} Rxd1+ {[%emt 0:00:05]} 26. Rxd1 {[%emt 0:00:01]} g6 {[%emt 0:02:13]} 27. Rd7 {[%emt 0:02:43]} b5 {[%emt 0:19:03]} 28. a4 {[%emt 0:06:24]} bxa4 {[%emt 0:01:27]} 29. Rd4 {[%emt 0:00:01]} Rc8 {[%emt 0:01:14]} 30. Rxa4 {[%emt 0:00:08]} Rc7 {[%emt 0:00:04]} 31. b4 {[%emt 0:08:02]} gxh5 {[%emt 0:03:55]} 32. b5 {[%emt 0:00:04]} Rc5 {[%emt 0:09:37]} 33. c4 {[%emt 0:03:20]} h4 {[%emt 0:00:03]} 34. Kb2 {[%emt 0:00:19]} h3 {[%emt 0:00:23]} 35. Kb3 {[%emt 0:00:32]} h2 {[%emt 0:01:05]} 36. Ra1 {[%emt 0:00:01]} Rf5 {[%emt 0:01:00]} 37. Rh1 {[%emt 0:01:53]} Rf3+ {[%emt 0:07:24]} 38. Kb4 {[%emt 0:00:29]} Rxf2 {[%emt 0:00:05]} 39. c5 {[%emt 0:01:04]} Kf8 {[%emt 0:03:58]} 40. c6 {[%emt 0:00:00]} Ke7 {[%emt 0:00:00]} 41. Rd1 {[%emt 0:00:00]} Rd2 {[%emt 0:00:00]} 42. Ra1 {[%emt 0:00:00]} Kd8 {[%emt 0:00:00]} 43. c7+ {[%emt 0:03:11]} Kxc7 {[%emt 0:00:00]} 44. Rxa7+ {[%emt 0:00:05]} Kb6 {[%emt 0:00:00]} 45. Ra6+ {[%emt 0:00:02]} Kb7 {[%emt 0:00:00]} 46. Ra1 {[%emt 0:00:05]} Rg2 {[%emt 0:00:00]} 0-1

[Event "Satka Autumn 2019"]
[Site "Satka"]
[Date "2019.09.25"]
[Round "7.7"]
[White "Petrenko, Svetlana"]
[Black "Benderac, Ana"]
[Result "1/2-1/2"]
[ECO "B07"]
[WhiteElo "2200"]
[BlackElo "2228"]
[Annotator "NA"]
[PlyCount "51"]
[EventDate "2019.09.19"]
[EventType "swiss"]
[EventCountry "RUS"]
[SourceTitle "playchess.com"]
[Source "ChessBase"]
[SourceQuality "1"]
[TimeControl "5400+30"]

1. e4 {[%emt 0:00:00]} d6 {[%emt 0:00:00]} 2. d4 {[%emt 0:00:00]} Nf6 {[%emt 0:00:00]} 3. Nc3 {[%emt 0:00:00]} e5 {[%emt 0:00:01]} 4. dxe5 {[%emt 0:00:07]} dxe5 {[%emt 0:00:06]} 5. Qxd8+ {[%emt 0:00:06]} Kxd8 {[%emt 0:00:06]} 6. Bc4 {[%emt 0:00:20]} Bb4 {[%emt 0:00:24]} 7. Bd2 {[%emt 0:00:46]} Ke7 {[%emt 0:00:26]} 8. Nge2 {[%emt 0:00:34]} Be6 {[%emt 0:00:54]} 9. Bxe6 {[%emt 0:00:21]} Kxe6 {[%emt 0:00:10]} 10. f3 {[%emt 0:01:12]} c6 {[%emt 0:00:34]} 11. O-O-O {[%emt 0:00:27]} a5 {[%emt 0:00:36]} 12. g4 {[%emt 0:01:14]} Rd8 {[%emt 0:02:27]} 13. h4 {[%emt 0:01:18]} Na6 {[%emt 0:00:34]} 14. h5 {[%emt 0:00:59]} g6 {[%emt 0:00:24]} 15. Ng3 {[%emt 0:01:00]} b5 {[%emt 0:03:32]} 16. Nce2 {[%emt 0:01:54]} Bxd2+ {[%emt 0:01:01]} 17. Rxd2 {[%emt 0:00:10]} Rxd2 {[%emt 0:00:08]} 18. Kxd2 {[%emt 0:00:07]} Rd8+ {[%emt 0:00:19]} 19. Kc1 {[%emt 0:00:07]} Nc5 {[%emt 0:00:15]} 20. hxg6 {[%emt 0:00:15]} hxg6 {[%emt 0:00:07]} 21. Rd1 {[%emt 0:00:12]} Rh8 {[%emt 0:00:15]} 22. Rh1 {[%emt 0:00:21]} Rd8 {[%emt 0:00:06]} 23. Rd1 {[%emt 0:00:11]} Rh8 {[%emt 0:00:06]} 24. Rh1 {[%emt 0:00:12]} Rd8 {[%emt 0:00:05]} 25. Rd1 {[%emt 0:00:08]} Rh8 26. Rh1 1/2-1/2

[Event "Satka Autumn 2019"]
[Site "Satka"]
[Date "2019.09.25"]
[Round "7.8"]
[White "Prudnikova, Svetlana"]
[Black "Petrukhina, Olga"]
[Result "1/2-1/2"]
[ECO "D30"]
[WhiteElo "2234"]
[BlackElo "2192"]
[Annotator "NA"]
[PlyCount "63"]
[EventDate "2019.09.19"]
[EventType "swiss"]
[EventCountry "RUS"]
[SourceTitle "playchess.com"]
[Source "ChessBase"]
[SourceQuality "1"]
[TimeControl "5400+30"]

1. d4 {[%emt 0:00:00]} d5 {[%emt 0:00:00]} 2. c4 {[%emt 0:00:00]} e6 {[%emt 0:00:00]} 3. Nf3 {[%emt 0:00:00]} Be7 {[%emt 0:00:00]} 4. Nc3 {[%emt 0:00:00]} Nf6 {[%emt 0:00:00]} 5. cxd5 {[%emt 0:00:01]} exd5 {[%emt 0:00:00]} 6. Qc2 {[%emt 0:00:05]} c6 {[%emt 0:01:00]} 7. Bg5 {[%emt 0:00:30]} Nh5 {[%emt 0:04:21]} 8. Bxe7 {[%emt 0:04:53]} Kxe7 {[%emt 0:00:18]} 9. e4 {[%emt 0:06:02]} Be6 {[%emt 0:10:18]} 10. e5 {[%emt 0:06:57]} g6 {[%emt 0:01:22]} 11. Qd2 {[%emt 0:09:49]} Nd7 {[%emt 0:08:13]} 12. Be2 {[%emt 0:05:47]} Ng7 {[%emt 0:04:07]} 13. h4 {[%emt 0:15:41]} h5 {[%emt 0:01:49]} 14. Ng5 Nf5 {[%emt 0:06:56]} 15. O-O-O {[%emt 0:05:37]} Nf8 {[%emt 0:05:02]} 16. f3 {[%emt 0:21:40]} Kd7 {[%emt 0:11:48]} 17. g4 {[%emt 0:03:58]} Ng7 {[%emt 0:09:37]} 18. Qf4 {[%emt 0:01:17]} Qe7 {[%emt 0:01:15]} 19. Qf6 {[%emt 0:00:53]} Qxf6 {[%emt 0:10:14]} 20. exf6 {[%emt 0:00:02]} Ne8 {[%emt 0:00:01]} 21. Nxe6 {[%emt 0:00:02]} Nxe6 {[%emt 0:00:20]} 22. g5 {[%emt 0:00:04]} Nd6 {[%emt 0:05:25]} 23. Bf1 {[%emt 0:05:23]} Nf4 {[%emt 0:04:27]} 24. Ne2 {[%emt 0:00:51]} Nxe2+ {[%emt 0:01:09]} 25. Bxe2 {[%emt 0:00:01]} Nf5 {[%emt 0:06:24]} 26. Bd3 {[%emt 0:00:24]} Ne3 {[%emt 0:01:34]} 27. Rde1 {[%emt 0:01:03]} Rae8 {[%emt 0:00:10]} 28. f4 {[%emt 0:01:08]} Ng4 {[%emt 0:06:15]} 29. Rhf1 {[%emt 0:03:54]} Nh2 {[%emt 0:01:45]} 30. Rh1 {[%emt 0:02:41]} Ng4 {[%emt 0:00:01]} 31. Rhf1 {[%emt 0:00:14]} Nh2 {[%emt 0:00:01]} 32. Rh1 {[%emt 0:00:27]} 1/2-1/2

[Event "Satka Autumn 2019"]
[Site "Satka"]
[Date "2019.09.25"]
[Round "7.9"]
[White "Trapeznikova, Darya"]
[Black "Makarenko, Alexandra"]
[Result "0-1"]
[ECO "D70"]
[WhiteElo "2085"]
[BlackElo "2169"]
[Annotator "NA"]
[PlyCount "112"]
[EventDate "2019.09.19"]
[EventType "swiss"]
[EventCountry "RUS"]
[SourceTitle "playchess.com"]
[Source "ChessBase"]
[SourceQuality "1"]
[TimeControl "5400+30"]

1. d4 {[%emt 0:00:01]} Nf6 {[%emt 0:00:00]} 2. c4 {[%emt 0:00:25]} g6 {[%emt 0:00:00]} 3. Nf3 {[%emt 0:00:41]} Bg7 {[%emt 0:00:00]} 4. Nc3 {[%emt 0:00:07]} O-O {[%emt 0:00:21]} 5. Bf4 {[%emt 0:01:14]} d6 {[%emt 0:03:44]} 6. e3 {[%emt 0:00:20]} Nfd7 {[%emt 0:00:15]} 7. Be2 {[%emt 0:04:11]} e5 {[%emt 0:01:05]} 8. Bg3 {[%emt 0:00:30]} Nc6 {[%emt 0:00:19]} 9. O-O {[%emt 0:03:04]} h6 {[%emt 0:00:15]} 10. h3 {[%emt 0:10:42]} Kh7 {[%emt 0:00:47]} 11. a3 {[%emt 0:01:01]} f5 {[%emt 0:02:43]} 12. b4 {[%emt 0:10:15]} g5 {[%emt 0:11:42]} 13. d5 {[%emt 0:12:20]} Ne7 {[%emt 0:11:40]} 14. Qc2 {[%emt 0:00:53]} Ng6 {[%emt 0:04:57]} 15. Rac1 {[%emt 0:06:50]} e4 {[%emt 0:15:38]} 16. Nd4 {[%emt 0:09:54]} Bxd4 {[%emt 0:12:08]} 17. exd4 {[%emt 0:00:14]} f4 {[%emt 0:14:15]} 18. Bh2 {[%emt 0:00:09]} Nf6 {[%emt 0:00:03]} 19. Nxe4 {[%emt 0:04:46]} Nxe4 {[%emt 0:00:05]} 20. Qxe4 {[%emt 0:00:07]} Bf5 {[%emt 0:00:16]} 21. Qf3 {[%emt 0:00:05]} Kg7 {[%emt 0:05:10]} 22. Qc3 {[%emt 0:10:08]} Nh4 {[%emt 0:02:29]} 23. g3 {[%emt 0:09:48]} f3 {[%emt 0:00:05]} 24. gxh4 {[%emt 0:00:06]} fxe2 {[%emt 0:00:38]} 25. Rfe1 {[%emt 0:00:04]} Qe7 {[%emt 0:01:07]} 26. Qd2 {[%emt 0:06:56]} Rae8 {[%emt 0:01:43]} 27. hxg5 {[%emt 0:00:37]} Qxg5+ {[%emt 0:05:11]} 28. Qxg5+ {[%emt 0:00:05]} hxg5 {[%emt 0:00:02]} 29. c5 {[%emt 0:02:28]} Rf6 {[%emt 0:06:25]} 30. Rc3 {[%emt 0:00:51]} Kg6 {[%emt 0:00:52]} 31. b5 {[%emt 0:05:05]} g4 {[%emt 0:00:54]} 32. hxg4 {[%emt 0:01:20]} Bxg4 {[%emt 0:00:01]} 33. a4 {[%emt 0:00:32]} Bf3 {[%emt 0:00:15]} 34. cxd6 {[%emt 0:00:30]} cxd6 {[%emt 0:00:16]} 35. Re3 {[%emt 0:00:30]} Rxe3 {[%emt 0:01:34]} 36. fxe3 {[%emt 0:00:04]} Kf5 {[%emt 0:00:30]} 37. Kf2 {[%emt 0:00:33]} Ke4 {[%emt 0:00:10]} 38. Bf4 {[%emt 0:00:50]} Rg6 {[%emt 0:00:40]} 39. Bg3 {[%emt 0:00:13]} Bg4 {[%emt 0:00:31]} 40. Bf4 {[%emt 0:00:00]} Kxd5 {[%emt 0:00:00]} 41. Rg1 {[%emt 0:00:00]} Ke4 {[%emt 0:00:00]} 42. a5 {[%emt 0:00:00]} Kd3 {[%emt 0:00:00]} 43. b6 {[%emt 0:00:00]} a6 {[%emt 0:00:00]} 44. d5 {[%emt 0:00:00]} Ke4 {[%emt 0:00:00]} 45. Bxd6 {[%emt 0:00:00]} Kxd5 {[%emt 0:00:00]} 46. Bf4 {[%emt 0:00:00]} Ke4 {[%emt 0:00:00]} 47. Ra1 {[%emt 0:00:06]} Bh5 {[%emt 0:00:00]} 48. Bg3 {[%emt 0:02:06]} Kd3 {[%emt 0:00:00]} 49. Bf4 {[%emt 0:00:50]} Rg8 {[%emt 0:00:00]} 50. Ra3+ {[%emt 0:01:36]} Kc2 {[%emt 0:00:00]} 51. Ra1 {[%emt 0:00:03]} Rd8 {[%emt 0:00:00]} 52. Re1 {[%emt 0:01:32]} Rd5 {[%emt 0:00:00]} 53. e4 {[%emt 0:00:52]} Rd4 {[%emt 0:00:56]} 54. Rc1+ {[%emt 0:00:51]} Kd3 {[%emt 0:00:04]} 55. Rc5 {[%emt 0:00:32]} Rxe4 {[%emt 0:00:40]} 56. Rd5+ {[%emt 0:00:02]} Kc4 {[%emt 0:00:55]} 0-1

[Event "Satka Autumn 2019"]
[Site "Satka"]
[Date "2019.09.25"]
[Round "7.10"]
[White "Mar, Karmen"]
[Black "Loskutova, Viktoriya"]
[Result "1/2-1/2"]
[ECO "B53"]
[WhiteElo "2026"]
[BlackElo "2162"]
[Annotator "NA"]
[PlyCount "90"]
[EventDate "2019.09.19"]
[EventType "swiss"]
[EventCountry "RUS"]
[SourceTitle "playchess.com"]
[Source "ChessBase"]
[SourceQuality "1"]
[TimeControl "5400+30"]

1. e4 {[%emt 0:00:00]} c5 {[%emt 0:00:00]} 2. Nf3 {[%emt 0:00:00]} d6 {[%emt 0:00:00]} 3. d4 {[%emt 0:00:15]} cxd4 {[%emt 0:00:06]} 4. Qxd4 {[%emt 0:00:09]} Nc6 {[%emt 0:00:58]} 5. Bb5 {[%emt 0:00:28]} Nf6 {[%emt 0:02:26]} 6. Nc3 {[%emt 0:01:31]} Bd7 {[%emt 0:00:16]} 7. Bxc6 {[%emt 0:00:08]} Bxc6 {[%emt 0:00:08]} 8. Bg5 {[%emt 0:00:37]} e6 {[%emt 0:00:52]} 9. O-O-O {[%emt 0:00:17]} Be7 {[%emt 0:01:28]} 10. Qd3 {[%emt 0:00:10]} Qa5 {[%emt 0:02:20]} 11. h4 {[%emt 0:02:14]} h6 {[%emt 0:01:03]} 12. Bd2 {[%emt 0:00:11]} Qa6 {[%emt 0:02:54]} 13. Qxa6 {[%emt 0:00:32]} bxa6 {[%emt 0:00:08]} 14. Rde1 {[%emt 0:01:27]} Ng4 {[%emt 0:08:09]} 15. Re2 {[%emt 0:08:06]} Rb8 {[%emt 0:10:53]} 16. Bf4 {[%emt 0:29:16]} O-O {[%emt 0:03:34]} 17. Rd1 {[%emt 0:10:07]} Rfd8 {[%emt 0:18:16]} 18. Red2 {[%emt 0:07:46]} e5 {[%emt 0:00:43]} 19. Bg3 {[%emt 0:00:25]} Nf6 {[%emt 0:12:03]} 20. Re1 {[%emt 0:04:24]} Rdc8 {[%emt 0:04:13]} 21. Nh2 {[%emt 0:05:43]} Nh5 {[%emt 0:10:48]} 22. Nf1 {[%emt 0:03:29]} f5 {[%emt 0:05:00]} 23. exf5 {[%emt 0:04:06]} Bxg2 {[%emt 0:00:09]} 24. Ne3 {[%emt 0:00:27]} Ba8 {[%emt 0:03:26]} 25. Ned5 {[%emt 0:02:17]} Bf8 {[%emt 0:02:02]} 26. Ne4 {[%emt 0:04:49]} Rb5 {[%emt 0:02:46]} 27. Red1 {[%emt 0:02:23]} Rc4 {[%emt 0:02:32]} 28. Nec3 {[%emt 0:05:20]} Rbc5 {[%emt 0:01:03]} 29. Ne3 {[%emt 0:01:24]} Rb4 {[%emt 0:00:05]} 30. Ned5 {[%emt 0:01:27]} Rbc4 {[%emt 0:01:09]} 31. Ne3 {[%emt 0:00:20]} Rb4 {[%emt 0:00:10]} 32. Ned5 {[%emt 0:00:05]} Rb8 {[%emt 0:02:35]} 33. Ne4 {[%emt 0:01:59]} Rc4 {[%emt 0:03:29]} 34. Nec3 {[%emt 0:02:20]} Nf6 {[%emt 0:00:37]} 35. Nxf6+ {[%emt 0:01:21]} gxf6 {[%emt 0:00:01]} 36. Nd5 {[%emt 0:00:24]} Kf7 {[%emt 0:00:01]} 37. b3 {[%emt 0:00:37]} Rg4 {[%emt 0:00:42]} 38. c4 {[%emt 0:01:29]} h5 {[%emt 0:00:32]} 39. Kc2 {[%emt 0:00:19]} Rc8 {[%emt 0:00:42]} 40. Kb2 {[%emt 0:00:00]} Rg8 {[%emt 0:00:00]} 41. Rg1 {[%emt 0:00:00]} Bc6 {[%emt 0:00:00]} 42. Rd3 {[%emt 0:00:00]} Bd7 {[%emt 0:00:00]} 43. Ne3 {[%emt 0:00:00]} Bc6 {[%emt 0:00:00]} 44. Nd5 {[%emt 0:00:00]} Bd7 {[%emt 0:00:00]} 45. Ne3 {[%emt 0:00:00]} Bc6 {[%emt 0:00:00]} 1/2-1/2

[Event "Satka Autumn 2019"]
[Site "Satka"]
[Date "2019.09.25"]
[Round "7.11"]
[White "Filippova, Darya"]
[Black "Turebayeva, Alfiya"]
[Result "1-0"]
[ECO "A01"]
[WhiteElo "2110"]
[BlackElo "2076"]
[Annotator "NA"]
[PlyCount "71"]
[EventDate "2019.09.19"]
[EventType "swiss"]
[EventCountry "RUS"]
[SourceTitle "playchess.com"]
[Source "ChessBase"]
[SourceQuality "1"]
[TimeControl "5400+30"]

1. b3 {[%emt 0:00:00]} d5 {[%emt 0:02:01]} 2. Bb2 {[%emt 0:00:00]} c5 {[%emt 0:01:07]} 3. e3 {[%emt 0:00:16]} Nc6 {[%emt 0:01:03]} 4. Nf3 {[%emt 0:05:09]} Bg4 {[%emt 0:07:37]} 5. Be2 {[%emt 0:02:21]} Nf6 {[%emt 0:00:49]} 6. O-O {[%emt 0:01:02]} e6 {[%emt 0:00:23]} 7. d4 {[%emt 0:03:44]} cxd4 {[%emt 0:02:09]} 8. Nxd4 {[%emt 0:00:44]} Bxe2 {[%emt 0:01:15]} 9. Qxe2 {[%emt 0:00:27]} Be7 {[%emt 0:00:37]} 10. Nxc6 {[%emt 0:01:42]} bxc6 {[%emt 0:00:06]} 11. c4 {[%emt 0:00:20]} O-O {[%emt 0:00:16]} 12. Nc3 {[%emt 0:00:40]} Qa5 {[%emt 0:09:19]} 13. Rad1 {[%emt 0:07:29]} Rfd8 {[%emt 0:05:43]} 14. Rd4 {[%emt 0:01:42]} e5 {[%emt 0:13:41]} 15. Rdd1 {[%emt 0:01:38]} Ba3 {[%emt 0:03:19]} 16. Ba1 {[%emt 0:02:03]} d4 {[%emt 0:03:00]} 17. Nb1 {[%emt 0:01:01]} c5 {[%emt 0:02:16]} 18. f4 {[%emt 0:01:26]} exf4 {[%emt 0:04:39]} 19. exd4 {[%emt 0:01:24]} cxd4 {[%emt 0:03:47]} 20. Nxa3 {[%emt 0:00:23]} Qxa3 {[%emt 0:00:08]} 21. Rxf4 {[%emt 0:02:18]} Re8 {[%emt 0:03:37]} 22. Qf2 {[%emt 0:06:19]} d3 {[%emt 0:01:58]} 23. Bxf6 {[%emt 0:07:13]} gxf6 {[%emt 0:00:27]} 24. Rg4+ {[%emt 0:01:04]} Kf8 {[%emt 0:00:18]} 25. Qxf6 {[%emt 0:00:42]} Qc5+ {[%emt 0:03:12]} 26. Kh1 {[%emt 0:01:28]} Qe5 {[%emt 0:05:12]} 27. Qh6+ {[%emt 0:00:39]} Ke7 {[%emt 0:00:07]} 28. Rg3 {[%emt 0:03:40]} Kd8 {[%emt 0:10:56]} 29. Rgxd3+ {[%emt 0:00:27]} Kc7 {[%emt 0:00:17]} 30. Rd7+ {[%emt 0:00:22]} Kb8 {[%emt 0:00:11]} 31. h3 {[%emt 0:01:33]} Qg3 {[%emt 0:00:59]} 32. Qd2 {[%emt 0:01:16]} a5 {[%emt 0:01:50]} 33. Rd8+ {[%emt 0:01:06]} Rxd8 {[%emt 0:00:04]} 34. Qxd8+ {[%emt 0:00:07]} Kb7 {[%emt 0:00:24]} 35. Qe7+ {[%emt 0:01:35]} Kc6 {[%emt 0:01:08]} 36. Qe4+ {[%emt 0:00:10] Kd5} 1-0

[Event "Satka Autumn 2019"]
[Site "Satka"]
[Date "2019.09.25"]
[Round "7.12"]
[White "Mirzaeva, Gulnara"]
[Black "Kalenichenko, Alina"]
[Result "1-0"]
[ECO "B81"]
[WhiteElo "1936"]
[BlackElo "1597"]
[Annotator "NA"]
[PlyCount "89"]
[EventDate "2019.09.19"]
[EventType "swiss"]
[EventCountry "RUS"]
[SourceTitle "playchess.com"]
[Source "ChessBase"]
[SourceQuality "1"]
[TimeControl "5400+30"]

1. e4 {[%emt 0:00:00]} c5 {[%emt 0:00:00]} 2. Nf3 {[%emt 0:00:00]} e6 {[%emt 0:00:00]} 3. d4 {[%emt 0:00:00]} cxd4 {[%emt 0:00:00]} 4. Nxd4 {[%emt 0:00:00]} Nf6 {[%emt 0:00:00]} 5. Nc3 {[%emt 0:00:00]} d6 {[%emt 0:00:00]} 6. g4 {[%emt 0:00:14]} h6 {[%emt 0:00:06]} 7. h4 {[%emt 0:00:19]} Be7 {[%emt 0:00:28]} 8. Rg1 {[%emt 0:00:36]} Nc6 {[%emt 0:00:33]} 9. g5 {[%emt 0:01:38]} hxg5 {[%emt 0:00:16]} 10. hxg5 {[%emt 0:00:11]} Nd7 {[%emt 0:00:10]} 11. g6 {[%emt 0:05:37]} Nde5 {[%emt 0:04:57]} 12. gxf7+ {[%emt 0:03:12]} Nxf7 {[%emt 0:00:25]} 13. Nxc6 {[%emt 0:01:33]} bxc6 {[%emt 0:00:13]} 14. Rxg7 {[%emt 0:01:47]} Bg5 {[%emt 0:01:39]} 15. Bxg5 {[%emt 0:00:52]} Nxg5 {[%emt 0:00:09]} 16. Qg4 {[%emt 0:00:25]} Nf7 {[%emt 0:02:55]} 17. O-O-O {[%emt 0:01:45]} Qf6 {[%emt 0:00:51]} 18. Bg2 {[%emt 0:08:14]} Bb7 {[%emt 0:01:31]} 19. Rg6 {[%emt 0:02:15]} Rh4 {[%emt 0:01:21]} 20. Rxf6 {[%emt 0:05:35]} Rxg4 {[%emt 0:00:08]} 21. Bh3 {[%emt 0:00:13]} Rh4 {[%emt 0:01:28]} 22. Bxe6 {[%emt 0:00:43]} Ne5 {[%emt 0:00:35]} 23. f4 {[%emt 0:01:31]} Ng4 {[%emt 0:01:56]} 24. Bxg4 {[%emt 0:00:11]} Rxg4 {[%emt 0:00:07]} 25. Rdxd6 {[%emt 0:00:09]} Ke7 {[%emt 0:00:22]} 26. Rfe6+ {[%emt 0:00:22]} Kf7 {[%emt 0:00:08]} 27. f5 {[%emt 0:00:44]} Ba6 {[%emt 0:01:59]} 28. Rd7+ {[%emt 0:00:31]} Kf8 {[%emt 0:00:36]} 29. Rg6 {[%emt 0:00:50]} Rh4 {[%emt 0:00:32]} 30. f6 {[%emt 0:00:20]} Rh1+ {[%emt 0:00:29]} 31. Kd2 {[%emt 0:00:15]} Rh2+ {[%emt 0:00:14]} 32. Ke3 {[%emt 0:00:05]} Rh3+ {[%emt 0:00:29]} 33. Kf4 {[%emt 0:00:06]} Bc8 {[%emt 0:00:52]} 34. Rc7 {[%emt 0:00:55]} Rh4+ {[%emt 0:00:17]} 35. Kg3 {[%emt 0:00:10]} Rh3+ {[%emt 0:00:27]} 36. Kg2 {[%emt 0:00:07]} Be6 {[%emt 0:00:42]} 37. Rxc6 {[%emt 0:01:28]} Bf7 {[%emt 0:00:18]} 38. Kxh3 {[%emt 0:00:27]} Bxg6 {[%emt 0:00:03]} 39. Kg4 {[%emt 0:00:15]} Rb8 {[%emt 0:00:18]} 40. Kg5 {[%emt 0:00:00]} Bf7 {[%emt 0:00:00]} 41. e5 {[%emt 0:00:00]} Rxb2 {[%emt 0:00:00]} 42. Rc8+ {[%emt 0:00:00]} Be8 {[%emt 0:00:00]} 43. e6 {[%emt 0:00:00]} Rxc2 {[%emt 0:00:00]} 44. f7 {[%emt 0:00:00]} Rg2+ {[%emt 0:00:00]} 45. Kh4 {[%emt 0:00:00]} 1-0

[Event "Satka Autumn 2019"]
[Site "Satka"]
[Date "2019.09.26"]
[Round "8.1"]
[White "Mironenko, Galina"]
[Black "Guseva, Marina"]
[Result "1-0"]
[ECO "B18"]
[WhiteElo "1982"]
[BlackElo "2374"]
[Annotator "NA"]
[PlyCount "99"]
[EventDate "2019.09.19"]
[EventType "swiss"]
[EventCountry "RUS"]
[SourceTitle "playchess.com"]
[Source "ChessBase"]
[SourceQuality "1"]
[TimeControl "5400+30"]

1. e4 {[%emt 0:00:00]} c6 {[%emt 0:00:00]} 2. d4 {[%emt 0:00:00]} d5 {[%emt 0:00:00]} 3. Nc3 {[%emt 0:00:00]} dxe4 {[%emt 0:00:00]} 4. Nxe4 {[%emt 0:00:00]} Bf5 {[%emt 0:00:00]} 5. Ng3 {[%emt 0:00:00]} Bg6 {[%emt 0:00:00]} 6. h4 {[%emt 0:00:00]} h6 {[%emt 0:00:00]} 7. Nf3 {[%emt 0:00:04]} e6 {[%emt 0:00:00]} 8. h5 {[%emt 0:00:09]} Bh7 {[%emt 0:00:00]} 9. Bd3 {[%emt 0:00:06]} Bxd3 {[%emt 0:00:03]} 10. Qxd3 {[%emt 0:00:04]} Nf6 {[%emt 0:00:04]} 11. Bd2 {[%emt 0:00:09]} Be7 {[%emt 0:00:04]} 12. O-O-O {[%emt 0:00:13]} O-O {[%emt 0:00:03]} 13. Ne4 {[%emt 0:01:00]} Nxe4 {[%emt 0:00:05]} 14. Qxe4 {[%emt 0:00:05]} Qd5 {[%emt 0:00:03]} 15. Qxd5 {[%emt 0:02:19]} cxd5 {[%emt 0:00:05]} 16. g4 {[%emt 0:03:05]} Nc6 {[%emt 0:03:51]} 17. Kb1 {[%emt 0:05:11]} b5 {[%emt 0:05:17]} 18. Rhg1 {[%emt 0:05:47]} Rfe8 {[%emt 0:11:23]} 19. Rde1 {[%emt 0:05:45]} b4 {[%emt 0:06:29]} 20. g5 {[%emt 0:10:59]} hxg5 {[%emt 0:00:15]} 21. Bxg5 {[%emt 0:02:19]} Bxg5 {[%emt 0:01:52]} 22. Rxg5 {[%emt 0:00:19]} f6 {[%emt 0:09:03]} 23. Rg4 {[%emt 0:02:50]} Kf7 {[%emt 0:00:08]} 24. Reg1 {[%emt 0:00:29]} Rg8 {[%emt 0:00:05]} 25. Rf4 {[%emt 0:14:39]} Ke7 {[%emt 0:25:12]} 26. Rfg4 {[%emt 0:00:21]} Kd6 {[%emt 0:00:38]} 27. Kc1 {[%emt 0:12:53]} Rh8 {[%emt 0:00:11]} 28. Rxg7 {[%emt 0:03:34]} Rxh5 {[%emt 0:00:03]} 29. Rf7 {[%emt 0:03:19]} Rf5 {[%emt 0:00:18]} 30. Rg3 {[%emt 0:00:46]} Rf4 {[%emt 0:04:28]} 31. c3 {[%emt 0:06:11]} bxc3 {[%emt 0:00:06]} 32. bxc3 {[%emt 0:00:04]} Rb8 {[%emt 0:06:38]} 33. Kc2 {[%emt 0:06:31]} Ne7 {[%emt 0:06:40]} 34. Nd2 {[%emt 0:12:23]} Rxf2 {[%emt 0:00:56]} 35. c4 {[%emt 0:03:55]} Nf5 {[%emt 0:11:02]} 36. c5+ {[%emt 0:00:28]} Kc6 {[%emt 0:00:04]} 37. Rd3 {[%emt 0:00:18]} Rb7 {[%emt 0:07:04]} 38. Rf8 {[%emt 0:00:40]} Rg7 {[%emt 0:04:31]} 39. Kc3 {[%emt 0:00:34]} Ng3 {[%emt 0:00:17]} 40. Rc8+ {[%emt 0:00:00]} Kd7 {[%emt 0:00:00]} 41. Ra8 {[%emt 0:00:00]} Ne2+ {[%emt 0:00:00]} 42. Kb4 {[%emt 0:00:00]} Kc6 {[%emt 0:00:00]} 43. Nb3 {[%emt 0:00:00]} Rb7+ {[%emt 0:00:00]} 44. Ka3 {[%emt 0:00:00]} Kb5 {[%emt 0:00:00]} 45. Rd2 {[%emt 0:00:00]} Rc7 {[%emt 0:00:00]} 46. Rb2 {[%emt 0:00:00]} Kc6 {[%emt 0:00:00]} 47. Rd8 {[%emt 0:00:00]} Rg7 {[%emt 0:00:00]} 48. Na5+ {[%emt 0:00:00]} Kc7 {[%emt 0:00:00]} 49. Rbb8 {[%emt 0:00:00]} Rg3+ {[%emt 0:00:00]} 50. Kb4 {[%emt 0:00:00]} 1-0